Cogmind - Beta 13 @@@ ROGUE MODE // 2024.04.03 @ 16:06:17 Player: Mantreise Result: Destroyed by L-31 Rogue with Katana Performance ------------- Evolutions (2) 1000 Regions Visited (4) 800 Robots Destroyed (41) 205 Value Destroyed (1256) 1256 Prototype IDs (3) 60 Alien Tech Used (0) 0 Bonus (200) 200 TOTAL SCORE: 3521 Bonus ------- Entered Garrisons 200 Cogmind --------- Core Integrity 0/550 Matter 275/300 Energy 100/100 System Corruption 7% Temperature Cool (0) Movement Flying (35) Location -8/Garrison Parts ------- > --- POWER (1) -------- (None) > --- PROPULSION (4) --- Cesium-ion Thruster > --- UTILITY (4) ------ Improved Signal Interpreter > --- WEAPON (2) ------- (None) > --- INVENTORY (5) ---- (None) Peak State ------------ > --- POWER ------------ Subdweller Power Source > --- PROPULSION ------- Aluminum Leg Aluminum Leg Aluminum Leg Aluminum Leg > --- UTILITY ---------- Large Storage Unit Improved Signal Interpreter Targeting Computer Makeshift Light Armor Plating > --- WEAPON ----------- Ion Cannon Slug Cannon > --- INVENTORY -------- Cesium-ion Thruster Improved Heat Sink Heavy Armor Plating Particle Gun Subdweller Beam Cannon Improved Datajack Flamer [Rating: 24] Favorites ----------- Power Subdweller Power Source Engine Subdweller Power Source Propulsion Aluminum Leg Leg Aluminum Leg Wheel Compact Wheel Flight Unit Flight Unit Utility Large Storage Unit Device Improved Terrain Scanner Storage Large Storage Unit Processor Improved Signal Interpreter Protection Makeshift Light Armor Plating Weapon Medium Laser Energy Gun Medium Laser Energy Cannon Subdweller Beam Cannon Ballistic Cannon Slug Cannon Special Melee Weapon Improved Datajack Build | -11 -10 -10 -8 -8 ------- Run | Yrd Mat Sub Mat Gar Slots Evolved 4 | . . . 4 . Power . | . . . . . Propulsion 2 | . . . 2 . Utility 2 | . . . 2 . Weapon . | . . . . . Parts Attached 43 | 7 3 7 17 9 Power 5 | 1 1 1 2 . Engine 5 | 1 1 1 2 . Core . | . . . . . Reactor . | . . . . . Propulsion 13 | 2 1 3 4 3 Treads . | . . . . . Leg 5 | . . . 3 2 Wheel 5 | 2 1 2 . . Hover . | . . . . . Flight 3 | . . 1 1 1 Utility 10 | 2 1 1 4 2 Device 3 | 1 . 1 . 1 Storage 2 | 1 1 . . . Processor 2 | . . . 2 . Hackware . | . . . . . Protection 3 | . . . 2 1 Artifact . | . . . . . Weapon 15 | 2 . 2 7 4 Energy Gun 7 | 2 . . 5 . Energy Cannon 3 | . . 1 1 1 Ballistic Gun . | . . . . . Ballistic Cannon 3 | . . 1 1 1 Launcher . | . . . . . Special Weapon . | . . . . . Impact Weapon . | . . . . . Slashing Weapon . | . . . . . Piercing Weapon . | . . . . . Special Melee Weapon 2 | . . . . 2 Unidentified Prototypes 1 | . . . 1 . Parts Lost 26 | . 3 5 7 11 Power 3 | . 1 1 1 . Propulsion 10 | . 2 1 2 5 Utility 6 | . . 1 2 3 Weapon 7 | . . 2 2 3 Highest Loss Streak 10 | . 2 4 2 10 To Critical Strikes . | . . . . . Average Slot Usage (%) 77 | . 81 82 69 83 Engine 10 | . 13 13 9 7 Leg 12 | . . . 18 29 Wheel 6 | . 11 19 1 . Device 6 | . 14 12 1 . Storage 10 | . 14 14 9 8 Processor 5 | . . . 7 16 Protection 3 | . . . 6 3 Energy Gun 12 | . 28 12 11 . Energy Cannon 3 | . . 6 1 7 Ballistic Cannon 3 | . . 2 3 6 Naked Turns . | . . . . . Heaviest Build 42 | 15 30 42 42 42 Greatest Support 40 | 32 32 40 30 40 Greatest Overweight (x) 10 | . 9 2 10 4 Average Overweight (x) 1 | . 1 . 1 . Largest Inventory Capacity 15 | 8 15 15 15 15 Average Capacity 14 | 7 14 15 15 13 Most Carried 11 | 5 3 5 8 11 Average Carried 4 | 1 2 2 5 6 Final Capacity 15 | 8 15 15 15 5 Final Carried 7 | 1 2 4 7 . Class Distribution -------------------- 64% | Mutant 27% | Scavenger-Mutant 8% | Derelict-Mutant Dominant Class ---------------- Mutant | -10/Materials Mutant | -10/Subcaves Mutant | -8/Materials Scavenger-Mutant | -8/Garrison Resources | -11 -10 -10 -8 -8 ----------- Run | Yrd Mat Sub Mat Gar Matter Collected 674 | 270 15 46 198 145 Remotely . | . . . . . Salvage Created 1441 | 188 407 119 550 177 Parts 66 | 16 12 5 25 8 Haulers Intercepted 1 | . 1 . . . Recyclers Shooed 3 | . 3 . . . Parts Field Recycled . | . . . . . Retrieved Matter . | . . . . . Parts Self-Destructed 8 | . . 8 . . Prevented . | . . . . . Kills | -11 -10 -10 -8 -8 ------- Run | Yrd Mat Sub Mat Gar Combat Hostiles Destroyed 27 | . 5 5 12 5 Guns 16 | . 4 3 9 . Cannons 9 | . . 2 2 5 Classes Destroyed 11 | 3 3 2 2 1 Worker 3 | 2 . . 1 . Tunneler 3 | 3 . . . . Hauler 1 | . 1 . . . Recycler 4 | 1 2 . 1 . Turret 2 | . . 2 . . Watcher 1 | . 1 . . . Swarmer 8 | . . 5 2 1 Grunt 13 | . 5 . 6 2 Duelist 2 | . . . . 2 Sentry 2 | . . . 2 . Hunter 2 | . . . 2 . Best Kill Streak 6 | 4 6 3 3 2 Combat Bots Only 3 | . 3 3 3 2 Max Kills in Single Turn 1 | 1 1 1 1 1 Gunslinging . | . . . . . Exploded . | . . . . . Melee . | . . . . . Uniques/NPCs Destroyed . | . . . . . Combat | -11 -10 -10 -8 -8 -------- Run | Yrd Mat Sub Mat Gar Hostile Shots Fired 406 | . 42 92 142 130 Missed 111 | . 13 38 31 29 Damage Taken 3343 | . 325 359 1353 1306 Core 774 | . 80 134 294 266 Absorbed by Shields 16 | . . . . 16 Regen/Repaired (Parts) 24 | . . . 24 . Core Remaining (%) 57 | 100 . 14 . . Volleys Fired 147 | 13 35 37 49 13 Largest 2 | 2 2 1 2 2 Hottest 130 | 100 100 80 130 128 Shots Fired 238 | 26 65 37 85 25 Gun 187 | 26 65 23 73 . Cannon 51 | . . 14 12 25 Launcher . | . . . . . Special . | . . . . . Kinetic 20 | . . . 7 13 Thermal 218 | 26 65 37 78 12 Explosive . | . . . . . Electromagnetic . | . . . . . Robot Hit Streak 13 | 5 8 6 13 5 Robot Miss Streak 4 | 3 4 4 4 3 Penetration Max . | . . . . . Secondary Targets 4 | . 1 . 3 . Max Gunslinging Chain 1 | . 1 . 1 . Shots Hit Robots 138 | 15 40 15 58 10 Core Hits 60 | 7 16 7 23 7 Critical Kills 2 | . . 1 1 . Critical Parts Destroyed 3 | . . . 2 1 Critical Strikes 15 | 1 4 1 8 1 Burn 10 | 1 4 . 5 . Meltdown 1 | . . 1 . . Destroy 4 | . . . 3 1 Melee Attacks 1 | . . . . 1 Impact . | . . . . . Slashing . | . . . . . Piercing . | . . . . . Sneak Attacks . | . . . . . Combat Hostiles . | . . . . . Follow-up Attacks . | . . . . . Damage Inflicted 2419 | 188 524 309 1050 348 Guns 1649 | 188 524 97 840 . Cannons 763 | . . 212 210 341 Explosions . | . . . . . Melee . | . . . . . Ramming 7 | . . . . 7 Kinetic 347 | . . . 140 207 Thermal 2065 | 188 524 309 910 134 Explosive . | . . . . . Electromagnetic . | . . . . . Impact . | . . . . . Slashing . | . . . . . Piercing . | . . . . . Highest Corruption 7 | . 3 3 . 7 Average Corruption 3 | . 2 3 . 5 Corruption Purged . | . . . . . Corruption Blocked . | . . . . . Effects 15 | . 6 7 . 2 Message Errors 4 | . 2 2 . . Matter Fused 2 | . . 1 . 1 Heat Flow Errors 4 | . 2 2 . . Energy Discharges 1 | . . 1 . . Parts Fused 1 | . . . . 1 Data Loss (major) 1 | . . 1 . . Misfires 1 | . 1 . . . Alerts 1 | . 1 . . . Overload Shots . | . . . . . Overflow Damage 5 | . . 5 . . Projectiles 5 | . . 5 . . Explosions . | . . . . . Melee . | . . . . . Knockbacks 1 | . . . 1 . Impact . | . . . . . Kinetic 1 | . . . 1 . Secondary . | . . . . . Self-Inflicted Damage 3 | . . . . 3 Shots . | . . . . . Rammed 6 | . . . . 6 Targets Rammed 6 | . . . . 6 Kicked . | . . . . . Crushed . | . . . . . Highest Temperature 515 | 156 372 207 515 78 Average Temperature 119 | 51 125 62 153 27 Received Heat Transfer 870 | . 174 66 441 189 Effects 11 | . 3 . 8 . Shutdowns 1 | . . . 1 . Energy Bleed 2 | . . . 2 . Interference 6 | . 2 . 4 . Matter Decay 1 | . . . 1 . Damage (minor) 1 | . 1 . . . Siege Activations . | . . . . . Robots Corrupted . | . . . . . Combat Hostiles . | . . . . . Parts Fried . | . . . . . Impact Corruptions . | . . . . . Robots Melted 4 | . 2 1 1 . Combat Hostiles 2 | . 1 . 1 . Parts Melted 17 | 1 6 . 9 1 Heat Transferred 5624 | 629 1850 592 2368 185 Parts Sabotaged . | . . . . . Parts Stolen . | . . . . . Parts Stripped . | . . . . . Power Chain Reactions . | . . . . . Alert | -11 -10 -10 -8 -8 ------- Run | Yrd Mat Sub Mat Gar Peak Influence 360 | 30 163 . 360 268 Initial 140 | . 19 . 140 102 Average 171 | 11 103 . 210 214 Maximum Alert Level 1 | . . . 1 1 Low Security (%) 60 | 100 100 . 49 27 Level 1 39 | . . . 50 72 Level 2 . | . . . . . Level 3 . | . . . . . Level 4 . | . . . . . Level 5 . | . . . . . High Security . | . . . . . Max Security . | . . . . . Squads Dispatched 8 | . 2 . 6 . Investigation 7 | . 1 . 6 . Extermination . | . . . . . Reinforcement 1 | . 1 . . . Assault . | . . . . . Garrison . | . . . . . Intercept . | . . . . . Searches Triggered . | . . . . . Construction Impeded . | . . . . . Haulers Reinforced . | . . . . . Active Scanning Responses . | . . . . . Cargo Convoy Interrupts . | . . . . . Stealth | -11 -10 -10 -8 -8 --------- Run | Yrd Mat Sub Mat Gar Distress Signals 1 | . . . 1 . Communications Jammed . | . . . . . Distress Signals . | . . . . . Times Spotted 59 | . 8 17 18 16 Peak Tracking Total 9 | . 4 3 6 9 Tactical Retreats 7 | . . 2 3 2 Traps | -11 -10 -10 -8 -8 ------- Run | Yrd Mat Sub Mat Gar Traps Triggered 7 | . 2 . 3 2 Indirectly . | . . . . . Trap Hack Attempts . | . . . . . Triggered . | . . . . . Disarmed . | . . . . . Reprogrammed . | . . . . . Reused . | . . . . . Traps Extracted . | . . . . . Installed . | . . . . . Triggered . | . . . . . Machines | -11 -10 -10 -8 -8 ---------- Run | Yrd Mat Sub Mat Gar Machines Disabled 3 | . . 1 1 1 Max in Single Turn 1 | . . 1 1 1 Garrison Relay 1 | . . . . 1 Machines Repaired . | . . . . . Machines Dismantled . | . . . . . Machines Sabotaged . | . . . . . Overloaded Fab Kills . | . . . . . Hacking | -11 -10 -10 -8 -8 --------- Run | Yrd Mat Sub Mat Gar Machines Accessed 6 | . 1 . 4 1 Terminals 4 | . 1 . 2 1 Fabricators . | . . . . . Repair Stations 1 | . . . 1 . Recycling Units . | . . . . . Scanalyzers . | . . . . . Garrison Access 1 | . . . 1 . Total Hacks 18 | . 2 . 14 2 Successful 6 | . . . 6 . Failed 12 | . 2 . 8 2 Catastrophic 2 | . 1 . 1 . Database Lockouts . | . . . . . Manual 5 | . 2 . 3 . Terminals 13 | . 2 . 9 2 Fabricators . | . . . . . Repair Stations 3 | . . . 3 . Recycling Units . | . . . . . Scanalyzers . | . . . . . Garrison Access 2 | . . . 2 . Terminal Hacks 2 | . . . 2 . Record 1 | . . . 1 . Prototype ID Bank 1 | . . . 1 . Fabricator Hacks . | . . . . . Repair Station Hacks 2 | . . . 2 . Scan Component 1 | . . . 1 . Repair 1 | . . . 1 . Recycling Unit Hacks . | . . . . . Scanalyzer . | . . . . . Garrison Access Hacks 1 | . . . 1 . Unlock Access 1 | . . . 1 . Unauthorized Hacks 1 | . . . 1 . Terminals 1 | . . . 1 . Botnet 1 | . . . 1 . Fabricators . | . . . . . Repair Stations . | . . . . . Recycling Units . | . . . . . Scanalyzers . | . . . . . Garrison Access . | . . . . . Data Cores Recovered . | . . . . . Used . | . . . . . Hacking Detections 6 | . 1 . 4 1 Full Trace Events 4 | . 1 . 3 . Feedback Events . | . . . . . Feedback Blocked . | . . . . . Robot Schematics Acquired . | . . . . . Robots Built . | . . . . . Authchips . | . . . . . Time . | . . . . . Total Robot Build Rating . | . . . . . Part Schematics Acquired . | . . . . . Parts Built . | . . . . . Authchips . | . . . . . Time . | . . . . . Total Part Build Rating . | . . . . . Parts Repaired 1 | . . . 1 . Time 44 | . . . 44 . Parts Recycled . | . . . . . Recycled Matter . | . . . . . Retrieved Matter . | . . . . . Retrieved Components . | . . . . . Parts Scanalyzed . | . . . . . Part Schematics Acquired . | . . . . . Parts Damaged . | . . . . . Bothacking | -11 -10 -10 -8 -8 ------------ Run | Yrd Mat Sub Mat Gar Used RIF Installer . | . . . . . Robots Hacked . | . . . . . Non-combat . | . . . . . Combat . | . . . . . Robot Hacks Applied . | . . . . . Relay Couplers Released 5 | . . . . 5 Machine Destruction 5 | . . . . 5 Fabnet Peak Effective % . | . . . . . Robots Rewired . | . . . . . Allies Hacked . | . . . . . Hacks Repelled . | . . . . . Allies | -11 -10 -10 -8 -8 -------- Run | Yrd Mat Sub Mat Gar Total Allies . | . . . . . Largest Group . | . . . . . Highest-Rated Group . | . . . . . Highest-Rated Ally . | . . . . . Total Orders . | . . . . . Ally Attacks . | . . . . . Total Damage . | . . . . . Kills . | . . . . . Allies Corrupted . | . . . . . Allies Melted . | . . . . . Intel | -11 -10 -10 -8 -8 ------- Run | Yrd Mat Sub Mat Gar Robot Analysis Total . | . . . . . Derelict Logs Recovered . | . . . . . Drone Launches . | . . . . . Drone Recoveries . | . . . . . Exploration | -11 -10 -10 -8 -8 ------------- Run | Yrd Mat Sub Mat Gar Turns Passed 2417 | 152 430 495 929 411 Spaces Moved 1134 | 105 145 346 372 166 Core 51 | 13 21 . 14 3 Treads . | . . . . . Legs 443 | . . . 283 160 Wheels 635 | 92 124 346 73 . Hover . | . . . . . Flight 5 | . . . 2 3 Fastest Speed 50 | 50 100 105 120 120 Average Speed 154 | 93 164 116 190 180 Slowest Speed 600 | 100 500 130 600 260 Overloaded Moves . | . . . . . Propulsion Burnouts . | . . . . . Robots Hopped . | . . . . . Cave-ins Triggered . | . . . . . Exploration Rate (%) 20 | 6 27 23 25 20 Regions Visited 4 Branch Regions 1 Pre-discovered Areas . | . . . . . Known Exits Taken 1 | . . . 1 . Unknown Exits Taken 3 | 1 1 1 . . Scrap Searched 4 | . . 4 . . Spaces Dug . | . . . . . Terrain Destroyed 5 | . . . 4 1 Melee . | . . . . . Projectile 5 | . . . 4 1 AOE . | . . . . . Terrain Rammed . | . . . . . Walls Destroyed . | . . . . . Machines Disabled . | . . . . . Actions | -11 -10 -10 -8 -8 --------- Run | Yrd Mat Sub Mat Gar Total 1558 | 132 272 400 507 247 Wait 161 | . 87 . 49 25 Move 1130 | 104 144 345 371 166 Hop . | . . . . . Pick Up 45 | 8 3 9 17 8 Fast Attach . | . . . . . Attach 38 | 7 2 6 13 10 Detach 1 | . . . 1 . Swap 8 | . 1 1 4 2 Drop 11 | . . 2 3 6 Fire 147 | 13 35 37 49 13 Melee 1 | . . . . 1 Ram 6 | . . . . 6 Kick . | . . . . . Crush . | . . . . . Escape Stasis 10 | . . . . 10 Rewire . | . . . . . Trap . | . . . . . Miscellaneous . | . . . . . Route ------- -11/Scrapyard -10/Materials -10/Subcaves (discovered 2 exits: *Mat / [*Rec]) -8/Materials (discovered 2 exits: *Fac / Gar) -8/Garrison History --------- Turn | Location | Event 4 | -11/Scrapyard | Discovered new exit (range 16) 153 | -11/Scrapyard | Entered Materials 305 | -10/Materials | Build established: Mutant 566 | -10/Materials | Discovered new exit (range 5) 583 | -10/Materials | Entered Subcaves 840 | -10/Subcaves | Core integrity fell below 50% 907 | -10/Subcaves | Lost 4 parts (1p1n1u1w) 908 | -10/Subcaves | Discovered new exit (range 12) 913 | -10/Subcaves | Core integrity fell below 20% 952 | -10/Subcaves | Shifting Twisted Machinery released Mak. Light Armor Plating 955 | -10/Subcaves | Shifting Twisted Machinery released Slug Cannon 982 | -10/Subcaves | Discovered new exit (range 8) 1078 | -10/Subcaves | Entered Materials 1078 | -8/Materials | Evolved 4 slots: Propulsion x2, Utility x2 1441 | -8/Materials | Repaired Broken Sub. Power Source 1567 | -8/Materials | Discovered new exit (range 10) 1586 | -8/Materials | Identified exit to Factory 1700 | -8/Materials | Core integrity fell below 50% 1818 | -8/Materials | Build established: Scavenger-Mutant 2005 | -8/Materials | Identified exit to Garrison 2007 | -8/Materials | Entered Garrison 2030 | -8/Garrison | Triggered checkpoint 2110 | -8/Garrison | Triggered checkpoint 2149 | -8/Garrison | Garrison Relay disabled 2392 | -8/Garrison | Core integrity fell below 20% 2418 | -8/Garrison | Destroyed by L-31 Rogue with Katana Last Messages --------------- Slug Cannon destroyed. Imp. Heat Sink destroyed. System corrupted by crushing effect (+5). System corrupted: Aluminum Leg fused. Aluminum Leg destroyed. Critical hit (Burn: +37). Slammed into S-10 Pest. Destabilizing: System interference. Imp. Signal Interpreter temporarily disabled. Slammed into S-10 Pest. System corrupted: Matter fused (-10). Imp. Datajack destroyed. System corrupted by crushing effect (+2). Knocked back. S-10 Pest system corrupted by crushing effect. S-10 Pest system terminally corrupted. Acquired 20 matter. Slammed into S-10 Pest. Slammed into L-31 Rogue. Hvy. Armor Plating destroyed. Map ----- +----------------------------------------------------+ | ??????????? ?? ???????????????????????????? | | ???????????? ?? ???????????????????????????? | | ????????????# ?# ???????????????????????????? | | ????????????# ## ???????????????????????????? | | ???????????? "??????????????????????????? | | ???????? ?? "??????????????????????????? | | ????????? ?? "??????????????????????????? | | ??????????? ??? "??????????????????????????? | | ????????????# ??# #??????????????????????????? | | ???????# ##^^^ ## ###########?########???????? | | ?????? [%= + ????????? | | ?????? * * + ????????????? | | ???????# ##T##### "#???????????????? | | ?????????#### ## #####???# ##???????????????? | | ????????????# ???# ????????# !#????????????????? | | ??????????????????# ?????????# #????????????????? | | ??????????????????# ?????????# #????????????????? | | ??????????????????#??????????# #????????????????? | | ?????????????????????????????# #????????????????? | | ?????????????????????????????# #????????????????? | | ?????????????????????????????# #????????????????? | | ??????????????????# ####### #????????????????? | | ??????????????????# / + #????????????????? | | ??????????????????# ##g#### #????????????????? | | ????????????????????????#l#??# #????????????????? | | ????????????????????????#@#??# #????????????????? | | ????????????????????????#g#??# #????????????????? | | ????????????????????????s ??# #????????????????? | | ????????????????????????###??# #???????#####????? | | ?????????????????????????????# #???????# #????? | | ?????????????????????????????# ######### ###### | | ?????????????????????????????# | | ?????????????????????????????# | | ?????????????????????????????##################### | | ?????????????????????????????????????????????????? | | ?????????????????????????????????????????????????# | | ?????????????????????????????????????????????????# | | ?????????????????????????????????????????????????# | | ?????????????????????????????????????????????????# | | ?????????????????????????????????????????????????# | | ?????????????????????????????????????????????????? | | ?????????????????????????????????????????????????? | | ?????????????????????????????????????????????##### | | ?????????????????????????????????????????????#=% # | | ?????????????????????????????????????????#####% # | | ?????????????????????????????????????????# % ]! | | ?????????????????????????????????????????# ! | | ?????????????????????????????????????????#####! # | | ????????????????????????????????????????????# " | | ????????????????????????????????????????????###### | +----------------------------------------------------+ Best States ------------- Heat Dissipation 45 Energy Generation 15 Energy Capacity 250 Matter Stores 300 Matter Capacity 300 Sight Range 21 Terrain Scan Range 16 Terrain Scan Density 10 Armor Coverage 600 Evasion (%) 55 Targeting Accuracy 5 Item Schematics ----------------- None Robot Schematics ------------------ None Fabricated ------------ Nothing Alien Tech Used ----------------- None Achievements -------------- None Challenges ------------ None Game ------ Seed GrapheneRiotPendant Manual? 0 Play Time 00:27:08 Cumulative 10.7 hours Start 2024.04.02 @ 16:38:01 End 2024.04.03 @ 16:06:17 Sessions 5 Manual Loads 0 Difficulty Rogue Special Mode None Game No. 12 Rogue 10 Adventurer 2 Explorer 0 Win Type - Total 0 Types 0/0/0/0/0/0/0/0/0 Lore% 9 Gallery% 18 Achievement% 21 Wizard Run 0 Options --------- Layout 0 ASCII 0 Keyboard 0 Movement Mouse Keybinds 0 Fullscreen 1 Font 18/SmallcapsGlow Map View 38x25 Zoom Use 98% Tactical HUD 0 Map Filters NONE Filters NONE Steam 1 RUN: 7f6481c9-769a-46d0-b902-2171740e28f2